bitfinex-derivatives/quotes_BNBF0:USTF0_20250401
["timestamp","ask_amount","ask_price","bid_price","bid_amount"]
[1743519181337,0.32483352,615.7,615.02,0.26718459]
[1743519181533,0.71283352,615.7,615.03,0.26718459]
[1743519181837,0.71283352,615.7,615.04,0.26718459]
[1743519182038,0.71283352,615.7,615.05,0.26718459]
[1743519182238,0.71283352,615.7,614.89,0.241]
[1743519182239,0.71283352,615.7,615.06,0.26718459]
[1743519182538,0.71283352,615.7,615.07,0.26718459]
[1743519182738,0.71283352,615.7,615.08,0.26718459]
[1743519183040,0.71283352,615.7,615.09,0.26718459]
[1743519183338,0.71283352,615.7,615.1,0.26718459]
[1743519183539,0.71283352,615.7,615.11,0.26731739]
[1743519183739,0.71283352,615.7,615.07,0.26731739]
[1743519183941,0.71283352,615.7,615.08,0.26731739]
[1743519184140,0.71283352,615.7,615.09,0.26731739]
[1743519184334,0.71283352,615.7,615.07,0.26731739]
[1743519184536,0.71283352,615.7,615.08,0.26731739]
[1743519184736,0.28282221,615.69,615.09,0.26731739]
[1743519184939,0.28282221,615.69,615.1,0.26731739]
[1743519185140,0.28282221,615.69,615.11,0.26731739]
[1743519185341,0.28282221,615.69,615.12,0.26731739]
[1743519185542,0.28282221,615.69,615.13,0.26731739]
[1743519185744,0.28282221,615.69,615.07,0.26731739]
[1743519185943,0.28282221,615.69,615.08,0.26731739]
[1743519186144,0.28282221,615.69,615.09,0.26731739]
[1743519186346,0.71283352,615.7,615.1,0.26731739]
[1743519186543,0.71283352,615.7,615.06,0.585]
[1743519186544,0.32483879,615.69,615.11,0.26731739]
[1743519186847,0.32483879,615.69,615.12,0.2676825]
[1743519187043,0.2828429,615.68,615.13,0.2676825]
[1743519187242,0.2828429,615.68,615.14,0.2676825]
[1743519187640,0.2828429,615.68,615.15,0.2676825]
[1743519187841,0.2828429,615.68,615.16,0.2676825]
[1743519188145,0.32484935,615.67,615.17,0.2676825]
[1743519188345,0.32484935,615.67,615.18,0.2676825]
[1743519188645,0.32484935,615.67,615.19,0.2676825]
[1743519188942,0.32484935,615.67,615.2,0.2676825]
[1743519189140,0.32484935,615.67,615.21,0.2676825]
[1743519189341,0.32484935,615.67,615.22,0.2676825]
[1743519189646,0.32484935,615.67,615.23,0.2676825]
[1743519189846,0.32484935,615.67,615.24,0.2676825]
[1743519190146,0.28282451,615.66,615.25,0.2676825]
[1743519190342,0.28282451,615.66,615.26,0.2676825]
[1743519190543,0.28282451,615.66,615.07,0.2676825]
[1743519190744,0.28282451,615.66,615.06,0.585]
[1743519190745,0.60767913,615.66,615.08,0.2676825]
[1743519190941,0.60767913,615.66,615.09,0.2676825]
[1743519191145,0.60767913,615.66,615.1,0.2676825]
[1743519191340,0.60767913,615.66,615.06,0.585]
[1743519191341,0.60767913,615.66,615.07,0.2676825]
[1743519191545,0.60767913,615.66,615.08,0.2676825]
[1743519191747,0.3248599,615.65,615.07,0.2676825]
[1743519191944,0.3248599,615.65,615.08,0.2676825]
[1743519192146,0.3248599,615.65,615.07,0.2676825]
[1743519192343,0.3248599,615.65,615.08,0.2676825]
[1743519192542,0.3248599,615.65,615.09,0.2676825]
[1743519192743,0.3248599,615.65,615.07,0.2676825]
[1743519192946,0.3248599,615.65,615.08,0.2676825]
[1743519193142,0.3248599,615.65,615.09,0.2676825]
[1743519193343,0.3248599,615.65,615.1,0.2676825]
[1743519193548,0.3248599,615.65,615.11,0.2676825]
[1743519193745,0.3248599,615.65,615.12,0.2676825]
[1743519193951,0.3248599,615.65,615.13,0.2676825]
[1743519194150,0.3248599,615.65,615.14,0.2676825]
[1743519194450,0.3248599,615.65,615.15,0.2676825]
[1743519194651,0.3248599,615.65,615.16,0.2676825]
[1743519194950,0.3248599,615.65,615.17,0.2676825]
[1743519195145,0.3248599,615.65,615.18,0.2676825]
[1743519195348,0.3248599,615.65,615.19,0.2676825]
[1743519195548,0.3248599,615.65,615.2,0.2676825]
[1743519195746,0.3248599,615.65,615.07,0.2676825]
[1743519195947,0.282836,615.64,615.06,0.585]
[1743519196149,0.32487045,615.63,615.07,0.26776965]
[1743519198846,0.28282106,615.62,615.07,0.26776965]
[1743519199746,0.32488101,615.61,615.07,0.26776965]
[1743519200754,0.32488101,615.61,615.08,0.26782872]
[1743519200947,0.32488101,615.61,615.09,0.26782872]
[1743519201147,0.32488101,615.61,615.1,0.26782872]
[1743519201452,0.613,615.6,615.11,0.26782872]
[1743519201652,0.613,615.6,615.07,0.26782872]
[1743519201853,0.28290498,615.59,615.08,0.26782872]
[1743519202055,0.32489684,615.58,615.09,0.26782872]
[1743519202555,0.32489684,615.58,615.1,0.26782872]
[1743519202855,0.32489684,615.58,615.11,0.26782872]
[1743519203055,0.32489684,615.58,615.12,0.26782872]
[1743519203250,0.32489684,615.58,615.13,0.26782872]
[1743519203454,0.32489684,615.58,615.09,0.26782872]
[1743519203656,0.32489684,615.58,615.1,0.26782872]
[1743519203848,0.32489684,615.58,615.08,0.241]
[1743519203849,0.32489684,615.58,615.11,0.26778722]
[1743519204049,0.32489684,615.58,615.09,0.26778722]
[1743519204254,0.32489684,615.58,615.1,0.26778722]
[1743519204554,0.32489684,615.58,615.11,0.26778722]
[1743519204755,0.32489684,615.58,615.09,0.26778722]
[1743519204951,0.32489684,615.58,615.1,0.26778722]
[1743519205149,0.32489684,615.58,615.11,0.26778722]
[1743519205352,0.32489684,615.58,615.09,0.26778722]
[1743519205554,0.32489684,615.58,615.1,0.26778722]
[1743519206056,0.32489684,615.58,615.11,0.26778722]
[1743519206355,0.32489684,615.58,615.12,0.26778722]
[1743519206549,0.32489684,615.58,615.13,0.26778722]
[1743519206752,0.32489684,615.58,615.14,0.26778722]
[1743519206953,0.32489684,615.58,615.08,0.241]
[1743519207151,0.32489684,615.58,615.09,0.26778286]
[1743519208152,0.28298435,615.57,615.09,0.26778286]
[1743519208351,0.3249074,615.56,615.09,0.26778286]
[1743519209258,0.3249074,615.56,615.1,0.61]
[1743519209459,0.3249074,615.56,615.11,0.26778286]
[1743519210658,0.28288313,615.55,615.11,0.26778286]
[1743519210859,0.32491795,615.54,615.11,0.26778286]
[1743519211659,0.32491795,615.54,615.12,0.2677933]
[1743519211853,0.32491795,615.54,615.1,0.61]
[1743519211854,0.32491795,615.54,615.11,0.2677933]
[1743519212056,0.32491795,615.54,615.12,0.2677933]
[1743519212453,0.32491795,615.54,615.13,0.2677933]
[1743519212654,0.32491795,615.54,615.11,0.2677933]
[1743519213154,0.32491795,615.54,615.12,0.2677933]
[1743519213359,0.32491795,615.54,615.13,0.2677933]
[1743519213654,0.32491795,615.54,615.14,0.2677933]
[1743519213855,0.32491795,615.54,615.15,0.2677933]
[1743519214055,0.32491795,615.54,615.16,0.2677933]
[1743519214254,0.32491795,615.54,615.11,0.2677933]
[1743519214459,0.32491795,615.54,615.12,0.2677933]
[1743519214852,0.32491795,615.54,615.13,0.2677933]
[1743519215057,0.32491795,615.54,615.14,0.2677933]
[1743519215254,0.32491795,615.54,615.15,0.2677933]
[1743519215558,0.32491795,615.54,615.16,0.26768683]
[1743519215758,0.32491795,615.54,615.17,0.26768683]
[1743519216060,0.32491795,615.54,615.18,0.26768683]
[1743519216360,0.32491795,615.54,615.19,0.26768683]
[1743519216561,0.32491795,615.54,615.11,0.26768683]
[1743519216858,0.32491795,615.54,615.12,0.26768683]
[1743519217060,0.32491795,615.54,615.13,0.26768683]
[1743519217262,0.32491795,615.54,615.11,0.26768683]
[1743519217459,0.32491795,615.54,615.12,0.50868683]
[1743519217659,0.32491795,615.54,615.13,0.26768683]
[1743519219961,0.28286819,615.53,615.13,0.26768683]
[1743519220164,0.32492851,615.52,615.13,0.26768683]
[1743519220959,0.32492851,615.52,615.14,0.26765193]
[1743519221161,0.32492851,615.52,615.15,0.26765193]
[1743519221364,0.32492851,615.52,615.13,0.26765193]
[1743519221561,0.32492851,615.52,615.14,0.26765193]
[1743519221961,0.32492851,615.52,615.15,0.26765193]
[1743519222166,0.32492851,615.52,615.16,0.26765193]
[1743519222364,0.32492851,615.52,615.13,0.26765193]
[1743519222561,0.32492851,615.52,615.14,0.26765193]
[1743519222764,0.32492851,615.52,615.15,0.26765193]
[1743519222965,0.28285899,615.51,615.16,0.26765193]
[1743519223166,0.28285899,615.51,615.17,0.26765193]
[1743519223365,0.28285899,615.51,615.13,0.26765193]
[1743519223568,0.28285899,615.51,615.14,0.26765193]
[1743519223868,0.28285899,615.51,615.15,0.26765193]
[1743519224069,0.28285899,615.51,615.16,0.26746137]
[1743519224369,0.28285899,615.51,615.17,0.26746137]
[1743519224565,0.28285899,615.51,615.18,0.26746137]
[1743519224763,0.28285899,615.51,615.13,0.26746137]
[1743519224969,0.28285899,615.51,615.14,0.26746137]
[1743519225166,0.28285899,615.51,615.15,0.26746137]
[1743519225369,0.32492851,615.52,615.12,0.241]
[1743519225370,0.32492851,615.52,615.16,0.26746137]
[1743519225570,0.32492851,615.52,615.13,0.26746137]
[1743519225771,0.32492851,615.52,615.14,0.26746137]
[1743519225972,0.32492851,615.52,615.15,0.26746137]
[1743519226167,0.32492851,615.52,615.13,0.26746137]
[1743519226373,0.32492851,615.52,615.14,0.26746137]
[1743519226573,0.28285209,615.51,615.13,0.26746137]
[1743519226769,0.28285209,615.51,615.14,0.26746137]
[1743519226968,0.28285209,615.51,615.15,0.26746137]
[1743519227167,0.28285209,615.51,615.13,0.26746137]
[1743519228372,0.32492851,615.52,615.13,0.26746137]
[1743519228773,0.28285209,615.5,615.14,0.26759178]
[1743519228966,0.28285209,615.5,615.15,0.26759178]
[1743519229172,0.28285209,615.5,615.12,0.241]
[1743519229173,0.28285209,615.5,615.16,0.26759178]
[1743519229376,0.28285209,615.5,615.12,0.241]
[1743519229377,0.28285209,615.5,615.13,0.26759178]
[1743519229568,0.28285209,615.5,615.14,0.26759178]
[1743519229773,0.28285209,615.5,615.15,0.26759178]
[1743519229971,0.28285209,615.5,615.13,0.26759178]
[1743519230172,0.28285209,615.5,615.14,0.26759178]
[1743519230375,0.28285209,615.5,615.13,0.26759178]
[1743519230576,0.28285209,615.5,615.14,0.26759178]
[1743519230777,0.28285209,615.5,615.12,0.241]
[1743519230778,0.28285209,615.5,615.13,0.26759178]
[1743519230979,0.28285209,615.5,615.14,0.26759178]
[1743519231174,0.28285209,615.5,615.15,0.26759178]
[1743519231379,0.72092851,615.52,615.16,0.26759178]
[1743519231575,0.72092851,615.52,615.17,0.26759178]
[1743519231778,0.72092851,615.52,615.18,0.26759178]
[1743519231977,0.72092851,615.52,615.19,0.26759178]
[1743519232176,0.72092851,615.52,615.2,0.26759178]
[1743519232380,0.72092851,615.52,615.21,0.26759178]
[1743519232583,0.72092851,615.52,615.13,0.26759178]
[1743519232776,0.28294753,615.51,615.14,0.26759178]
[1743519233178,0.28294753,615.51,615.15,0.26759178]
[1743519233379,0.28294753,615.51,615.16,0.26759178]
[1743519233577,0.28294753,615.51,615.17,0.26759178]
[1743519233777,0.28294753,615.51,615.18,0.26759178]
[1743519233981,0.28294753,615.51,615.19,0.26759178]
[1743519234179,0.28294753,615.51,615.2,0.26759178]
[1743519234478,0.72092851,615.52,615.21,0.26759178]
[1743519234683,0.72092851,615.52,615.22,0.26759178]
[1743519234883,0.72092851,615.52,615.23,0.26759178]
[1743519235085,0.72092851,615.52,615.24,0.26759178]
[1743519235585,0.28283485,615.51,615.25,0.26759178]
[1743519235784,0.28283485,615.51,615.26,0.26759178]
[1743519236079,0.28283485,615.51,615.27,0.26759178]
[1743519236284,0.28283485,615.51,615.14,0.26759178]
[1743519236483,0.28283485,615.51,615.13,0.417]
[1743519236784,0.28283485,615.51,615.14,0.26751836]
[1743519236984,0.28283485,615.51,615.15,0.26751836]
[1743519237176,0.28283485,615.51,615.16,0.26751836]
[1743519237382,0.72092851,615.52,615.17,0.26751836]
[1743519237682,0.72092851,615.52,615.18,0.26751836]
[1743519237880,0.72092851,615.52,615.14,0.26751836]
[1743519238076,0.72092851,615.52,615.19,0.26751836]
[1743519238281,0.72092851,615.52,615.2,0.26751836]
[1743519238476,0.72092851,615.52,615.14,0.26751836]
[1743519238682,0.28283485,615.51,615.15,0.26751836]
[1743519238879,0.28283485,615.51,615.14,0.26751836]
[1743519239080,0.28283485,615.51,615.15,0.26751836]
[1743519239380,0.28283485,615.51,615.16,0.26751836]
[1743519239585,0.28283485,615.51,615.14,0.26751836]
[1743519239885,0.28283485,615.51,615.15,0.26730146]
[1743519240086,0.28283485,615.51,615.14,0.26730146]
[1743519240286,0.28283485,615.51,615.15,0.26730146]
[1743519240482,0.28283485,615.51,615.14,0.26730146]
[1743519240687,0.28283485,615.51,615.15,0.26730146]
[1743519240886,0.28283485,615.51,615.14,0.26730146]
[1743519241088,0.28283485,615.51,615.15,0.26730146]
[1743519241384,0.28283485,615.51,615.16,0.26730146]
[1743519241589,0.28283485,615.51,615.14,0.26730146]
[1743519241785,0.28283485,615.51,615.15,0.26730146]
[1743519241989,0.28283485,615.51,615.14,0.26730146]
[1743519242189,0.28283485,615.51,615.15,0.26730146]
[1743519242591,0.28283485,615.51,615.16,0.26730146]
[1743519242789,0.28283485,615.51,615.14,0.26730146]
[1743519243386,0.72092851,615.52,615.14,0.26730146]
[1743519243893,0.72092851,615.52,615.13,0.658]
[1743519244086,0.72092851,615.52,615.14,0.26715503]
[1743519244689,0.28283025,615.51,615.15,0.26715503]
[1743519244890,0.28283025,615.51,615.16,0.26715503]
[1743519245094,0.28283025,615.51,615.17,0.26715503]
[1743519245394,0.28283025,615.51,615.18,0.26715503]
[1743519245689,0.28283025,615.51,615.19,0.2671811]
[1743519245889,0.28283025,615.51,615.14,0.2671811]
[1743519246090,0.28283025,615.51,615.13,0.658]
[1743519246091,0.28283025,615.51,615.15,0.2671811]
[1743519246292,0.28283025,615.51,615.16,0.2671811]
[1743519246494,0.28283025,615.51,615.17,0.2671811]
[1743519246795,0.28283025,615.51,615.18,0.2671811]
[1743519246993,0.28283025,615.51,615.14,0.2671811]
[1743519247189,0.28283025,615.51,615.15,0.2671811]
[1743519247391,0.28283025,615.51,615.14,0.2671811]
[1743519247589,0.28283025,615.51,615.15,0.2671811]
[1743519247794,0.28283025,615.51,615.16,0.2671811]
[1743519247991,0.28283025,615.51,615.17,0.2671811]
[1743519248194,0.28283025,615.51,615.13,0.658]
[1743519248195,0.28283025,615.51,615.18,0.2671811]
[1743519248397,0.28283025,615.51,615.19,0.2671811]
[1743519248798,0.28283025,615.51,615.2,0.2671811]
[1743519249000,0.28283025,615.51,615.14,0.2671811]
[1743519249199,0.28283025,615.51,615.13,0.658]
[1743519249200,0.28283025,615.51,615.15,0.2671811]
[1743519249393,0.32492851,615.52,615.13,0.658]
[1743519249595,0.32492851,615.52,615.14,0.26713869]
[1743519250699,0.2827728,615.51,615.14,0.26713869]
[1743519251601,0.60770659,615.51,615.14,0.26713869]
[1743519251898,0.32493907,615.5,615.14,0.26713869]
[1743519253396,0.32493907,615.5,615.15,0.26713869]
[1743519253597,0.32493907,615.5,614.2,0.26713869]
[1743519253795,0.32493907,615.5,614.21,0.59276022]
[1743519254002,0.32493907,615.5,614.22,0.59275491]
[1743519254203,0.32493907,615.5,614.23,0.59274961]
[1743519254398,0.32493907,615.5,614.24,0.50813869]
[1743519254598,0.32493907,615.5,614.25,0.26713869]
[1743519254803,0.32493907,615.5,614.26,0.59273371]
[1743519255106,0.32493907,615.5,614.27,0.59272841]
[1743519255305,0.32493907,615.5,614.28,0.26713869]
[1743519255597,0.32493907,615.5,614.29,0.26713869]
[1743519255803,0.32493907,615.5,614.3,0.26713869]
[1743519256002,0.32493907,615.5,614.31,0.26713869]
[1743519256206,0.32493907,615.5,614.32,0.26713869]
[1743519256598,0.32493907,615.5,614.33,0.26713869]
[1743519256804,0.32493907,615.5,614.34,0.26713869]
[1743519257003,0.32493907,615.5,614.35,0.26713869]
[1743519257305,0.32493907,615.5,614.34,0.483]
[1743519257306,0.32493907,615.5,614.36,0.26713869]
[1743519257605,0.32493907,615.5,614.37,0.26713869]
[1743519257806,0.32493907,615.5,614.38,0.26713869]
[1743519258106,0.32493907,615.5,614.39,0.26713869]
[1743519258305,0.32493907,615.5,614.4,0.26713869]
[1743519258606,0.32493907,615.5,614.41,0.26713869]
[1743519258806,0.32493907,615.5,614.34,0.483]
[1743519258807,0.28295674,615.49,614.42,0.26713869]
[1743519259006,0.28295674,615.49,614.43,0.26713869]
[1743519259200,0.28295674,615.49,614.44,0.26713869]
[1743519259407,0.28295674,615.49,614.45,0.26713869]
[1743519259602,0.28295674,615.49,614.46,0.26713869]
[1743519259803,0.28295674,615.49,614.47,0.26713869]
[1743519260001,0.28295674,615.49,614.48,0.26713869]
[1743519260206,0.28295674,615.49,614.49,0.26713869]
[1743519260406,0.28295674,615.49,614.5,0.26713869]
[1743519260607,0.60790109,615.49,614.51,0.26713869]
[1743519260803,0.60790109,615.49,614.52,0.26713869]
[1743519261006,0.60790109,615.49,614.53,0.26713869]
[1743519261202,0.60790109,615.49,614.54,0.26713869]
[1743519261406,0.32494435,615.49,614.55,0.26713869]
[1743519261607,0.32494435,615.49,614.56,0.26713869]
[1743519261802,0.32494435,615.49,614.57,0.26713869]
[1743519262003,0.32494435,615.49,614.58,0.26713869]
[1743519262201,0.32494435,615.49,614.59,0.26713869]
[1743519262406,0.32494435,615.49,614.6,0.26713869]
[1743519262607,0.32494435,615.49,614.61,0.26713869]
[1743519262910,0.28296249,615.48,614.62,0.26713869]
[1743519263103,0.28296249,615.48,614.63,0.26713869]
[1743519263303,0.28296249,615.48,614.64,0.26713869]
[1743519263509,0.32495491,615.47,614.65,0.26713869]
[1743519263710,0.32495491,615.47,614.66,0.26713869]
[1743519264011,0.32495491,615.47,614.67,0.26713869]
[1743519264207,0.32495491,615.47,614.34,0.483]
[1743519264404,0.32495491,615.47,614.35,0.26742051]
[1743519264609,0.32495491,615.47,614.36,0.26742051]
[1743519264912,0.32495491,615.47,614.37,0.26742051]
[1743519265106,0.32495491,615.47,614.38,0.26742051]
[1743519265303,0.32495491,615.47,614.39,0.26742051]
[1743519265508,0.32495491,615.47,614.4,0.26742051]
[1743519265705,0.32495491,615.47,614.41,0.26742051]
[1743519265909,0.32495491,615.47,614.42,0.26742051]
[1743519266111,0.32495491,615.47,614.43,0.26742051]
[1743519266308,0.32495491,615.47,614.34,0.483]
[1743519266514,0.32495491,615.47,614.35,0.2673764]
[1743519266712,0.32495491,615.47,614.36,0.2673764]
[1743519266913,0.32495491,615.47,614.37,0.2673764]
[1743519267111,0.32495491,615.47,614.38,0.2673764]
[1743519267312,0.32495491,615.47,614.39,0.2673764]
[1743519267509,0.32495491,615.47,614.34,0.483]
[1743519267510,0.32495491,615.47,614.4,0.2673764]
[1743519267714,0.32495491,615.47,614.4,0.2673956]
[1743519267909,0.32495491,615.47,614.41,0.2673956]
[1743519268112,0.32495491,615.47,614.42,0.2673956]
[1743519268415,0.32495491,615.47,614.43,0.2673956]
[1743519268615,0.32495491,615.47,614.44,0.2673956]
[1743519268815,0.32495491,615.47,614.45,0.2673956]
[1743519269009,0.32495491,615.47,614.46,0.2673956]
[1743519269214,0.32495491,615.47,614.47,0.26720055]
[1743519269415,0.32495491,615.47,614.48,0.26720055]
[1743519269714,0.32495491,615.47,614.49,0.26720055]
[1743519269910,0.32495491,615.47,614.5,0.26720055]
[1743519270112,0.32495491,615.47,614.51,0.26720055]
[1743519270315,0.32495491,615.47,614.52,0.26720055]
[1743519270513,0.32495491,615.47,614.53,0.26720055]
[1743519270714,0.32495491,615.47,614.34,0.483]
[1743519270915,0.32495491,615.47,614.35,0.26711827]
[1743519271111,0.32495491,615.47,614.36,0.26711827]
[1743519271317,0.32495491,615.47,614.37,0.26711827]
[1743519271614,0.32495491,615.47,614.27,0.32558972]
[1743519271615,0.32495491,615.47,614.38,0.26711827]
[1743519271815,0.77287738,615.46,614.39,0.26711827]
[1743519272115,0.77287738,615.46,614.4,0.26711827]
[1743519272315,0.77287738,615.46,614.41,0.26711827]
[1743519272616,0.77287738,615.46,614.42,0.26711827]
[1743519272816,0.77287738,615.46,614.43,0.26711827]
[1743519273019,0.77287738,615.46,614.44,0.26711827]
[1743519273216,0.77287738,615.46,614.45,0.26711827]
[1743519273416,0.49,615.46,614.46,0.26711827]
[1743519273615,0.49,615.46,614.27,0.32558972]
[1743519273616,0.32496547,615.45,614.47,0.26711827]
[1743519273819,0.32496547,615.45,614.28,0.26711827]
[1743519274021,0.32496547,615.45,614.29,0.26711827]
[1743519274323,0.32496547,615.45,614.3,0.26730798]
[1743519274523,0.32496547,615.45,614.31,0.26730798]
[1743519274724,0.28300506,615.44,614.32,0.26730798]
[1743519274923,0.32497603,615.43,614.33,0.26730798]
[1743519275224,0.32497603,615.43,614.34,0.50830798]
[1743519275523,0.32497603,615.43,614.35,0.26730798]
[1743519275728,0.32497603,615.43,614.36,0.26726777]
[1743519275928,0.32497603,615.43,614.37,0.26726777]
[1743519276127,0.32497603,615.43,614.34,0.241]
[1743519276128,0.32497603,615.43,614.38,0.26726777]
[1743519276426,0.32497603,615.43,614.39,0.26726777]
[1743519276628,0.32497603,615.43,614.4,0.26726777]
[1743519276826,0.32497603,615.43,614.41,0.26726777]
[1743519277026,0.32497603,615.43,614.42,0.26726777]
[1743519277224,0.32497603,615.43,614.34,0.241]
[1743519277225,0.32497603,615.43,614.43,0.26726777]
[1743519277426,0.32497603,615.43,614.44,0.26726777]
[1743519277622,0.28298435,615.42,614.45,0.26726777]
[1743519277820,0.60796566,615.42,614.46,0.26726777]
[1743519278023,0.60796566,615.42,614.47,0.26726777]
[1743519278222,0.60796566,615.42,614.48,0.26726777]
[1743519278423,0.60796566,615.42,614.49,0.26726777]
[1743519278624,0.60796566,615.42,614.5,0.26726777]
[1743519278824,0.60796566,615.42,614.34,0.241]
[1743519278825,0.60796566,615.42,614.51,0.26733163]
[1743519279129,0.60796566,615.42,614.52,0.26733163]
[1743519279330,0.60796566,615.42,614.53,0.26733163]
[1743519279631,0.60796566,615.42,614.54,0.26733163]
[1743519279829,0.60796566,615.42,614.55,0.26733163]
[1743519280029,0.60796566,615.42,614.56,0.26733163]
[1743519280229,0.60796566,615.42,614.57,0.26733163]
[1743519280428,0.60796566,615.42,614.58,0.26733163]
[1743519280627,0.60796566,615.42,614.59,0.26733163]
[1743519280827,0.32498659,615.41,614.6,0.26733163]
[1743519281024,0.32498659,615.41,614.61,0.26733163]
[1743519281223,0.32498659,615.41,614.62,0.26733163]
[1743519281428,0.32498659,615.41,614.63,0.26733163]
[1743519281729,0.32498659,615.41,614.64,0.26729211]
[1743519281924,0.32498659,615.41,614.65,0.26729211]
[1743519282124,0.32498659,615.41,614.66,0.26729211]
[1743519282329,0.32498659,615.41,614.67,0.26729211]
[1743519282524,0.32498659,615.41,614.68,0.26729211]
[1743519282728,0.32498659,615.41,614.69,0.26729211]
[1743519282930,0.32498659,615.41,614.7,0.26729211]
[1743519283127,0.32498659,615.41,614.71,0.26729211]
[1743519283325,0.32498659,615.41,614.34,0.241]
[1743519283326,0.32498659,615.41,614.72,0.26729211]
[1743519283526,0.32498659,615.41,614.73,0.26729211]
[1743519283727,0.28299585,615.4,614.74,0.26729211]
[1743519283927,0.28299585,615.4,614.75,0.26729211]
[1743519284127,0.32499715,615.39,614.76,0.26729211]
[1743519284432,0.32499715,615.39,614.77,0.26729211]
[1743519284630,0.32499715,615.39,614.78,0.26729211]
[1743519284825,0.32499715,615.39,614.79,0.2671655]
[1743519285025,0.32499715,615.39,614.8,0.2671655]
[1743519285227,0.32499715,615.39,614.81,0.2671655]
[1743519285530,0.32499715,615.39,614.82,0.2671655]
[1743519285735,0.32499715,615.39,614.83,0.2671655]
[1743519286033,0.28298665,615.38,614.84,0.2671655]
[1743519286234,0.28298665,615.38,614.85,0.2671655]
[1743519286431,0.28298665,615.38,614.86,0.2671655]
[1743519286632,0.28298665,615.38,614.87,0.2671655]
[1743519286827,0.28298665,615.38,614.88,0.2671655]
[1743519287030,0.28298665,615.38,614.89,0.2671655]
[1743519287230,0.28298665,615.38,614.9,0.2671655]
[1743519287536,0.28298665,615.38,614.91,0.2671655]
[1743519287732,0.28298665,615.38,614.92,0.2671655]
[1743519288027,0.32500771,615.37,614.93,0.2671655]
[1743519288233,0.32500771,615.37,614.35,0.2671655]
[1743519288433,0.32500771,615.37,614.36,0.2671655]
[1743519288628,0.32500771,615.37,614.37,0.2671655]
[1743519288827,0.28300966,615.36,614.38,0.2671655]
[1743519289027,0.28300966,615.36,614.39,0.2671655]
[1743519289229,0.28300966,615.36,614.4,0.2671655]
[1743519289429,0.32501828,615.35,614.41,0.2671655]
[1743519289631,0.32501828,615.35,614.42,0.2671655]
[1743519289933,0.32501828,615.35,614.43,0.2671655]
[1743519290131,0.32501828,615.35,614.44,0.2671655]
[1743519290332,0.32501828,615.35,614.45,0.2671655]
[1743519290525,0.32501828,615.35,614.46,0.2671655]
[1743519290728,0.32501828,615.35,614.47,0.2671655]
[1743519290931,0.32501828,615.35,614.48,0.26729498]
[1743519291131,0.32501828,615.35,614.49,0.26729498]
[1743519291333,0.32501828,615.35,614.5,0.26729498]
[1743519291534,0.32501828,615.35,614.51,0.26729498]
[1743519291730,0.32501828,615.35,614.52,0.26729498]
[1743519292035,0.28301887,615.34,614.53,0.26729498]
[1743519292232,0.32502884,615.33,614.54,0.26729498]
[1743519292429,0.32502884,615.33,614.55,0.26729498]
[1743519292633,0.32502884,615.33,614.56,0.26729498]
[1743519292930,0.32502884,615.33,614.57,0.26729498]
[1743519293130,0.32502884,615.33,614.58,0.26729498]
[1743519293333,0.32502884,615.33,614.59,0.26729498]
[1743519293534,0.32502884,615.33,614.41,0.488]
[1743519293535,0.32502884,615.33,614.6,0.26729498]
[1743519293735,0.32502884,615.33,614.61,0.26729498]
[1743519293928,0.32502884,615.33,614.62,0.26725773]
[1743519294129,0.32502884,615.33,614.63,0.26725773]
[1743519294331,0.32502884,615.33,614.64,0.26725773]
[1743519294636,0.32502884,615.33,614.65,0.26725773]
[1743519294935,0.32502884,615.33,614.66,0.26725773]
[1743519295333,0.32502884,615.33,614.67,0.26725773]
[1743519295537,0.32502884,615.33,614.68,0.26723884]
[1743519295839,0.32502884,615.33,614.69,0.26723884]
[1743519296133,0.32502884,615.33,614.7,0.26723884]
[1743519296331,0.32502884,615.33,614.71,0.26723884]
[1743519296532,0.32502884,615.33,614.72,0.26723884]
[1743519296837,0.32502884,615.33,614.73,0.26723884]
[1743519297035,0.32502884,615.33,614.41,0.488]
[1743519297036,0.32502884,615.33,614.74,0.26713142]
[1743519297234,0.32502884,615.33,614.42,0.26713142]
[1743519297536,0.32502884,615.33,614.43,0.26713142]
[1743519297736,0.32502884,615.33,614.44,0.26713142]
[1743519297936,0.32502884,615.33,614.41,0.488]
[1743519297937,0.32502884,615.33,614.45,0.26713142]
[1743519298235,0.32502884,615.33,614.46,0.26713142]
[1743519298436,0.32502884,615.33,614.47,0.26713142]
[1743519298636,0.32502884,615.33,614.48,0.26713142]
[1743519298837,0.32502884,615.33,614.49,0.26713142]
[1743519299030,0.32502884,615.33,614.5,0.26713142]
[1743519299233,0.32502884,615.33,614.51,0.26713142]
[1743519299431,0.32502884,615.33,614.52,0.26713142]
[1743519299638,0.32502884,615.33,614.53,0.26713142]
[1743519299834,0.32502884,615.33,614.54,0.26713142]
[1743519300142,0.32502884,615.33,614.46,0.241]
[1743519300439,0.32502884,615.33,614.47,0.2668803]
[1743519300636,0.32502884,615.33,614.48,0.2668803]
[1743519300831,0.32502884,615.33,614.49,0.2668803]
[1743519301036,0.32502884,615.33,614.5,0.2668803]
[1743519301334,0.468,615.33,614.51,0.2668803]
[1743519301534,0.468,615.33,614.52,0.2668803]